bitfinex-derivatives/quotes_ETHF0:USTF0_20241105
["timestamp","ask_amount","ask_price","bid_price","bid_amount"]
[1730768542583,0.41712,2398.9,2398.8,0.485]
[1730768542785,0.41712,2398.9,2398.8,1.06588815]
[1730768542979,41.21712,2398.9,2398.8,0.485]
[1730768543372,41.21712,2398.9,2398.8,1.06583752]
[1730768544278,41.21712,2398.9,2398.8,0.485]
[1730768545080,44.46681662,2398.9,2398.8,0.485]
[1730768545276,1.04286,2398.8,2398.3,1.0917096]
[1730768545476,3.66692662,2398.3,2398.2,1.0445]
[1730768545686,3.66692662,2398.3,2397.9,2.05373999]
[1730768545687,3.66692662,2398.3,2397.9,0.5251]
[1730768545881,0.41728,2398.0,2397.9,1.0224]
[1730768546185,41.21728,2398.0,2397.9,1.60329299]
[1730768546488,44.46697662,2398.0,2397.9,1.60329299]
[1730768546785,44.46697662,2398.0,2397.9,1.0224]
[1730768546990,44.46697662,2398.0,2397.9,1.60296883]
[1730768547185,44.46697662,2398.0,2397.5,4.2995096]
[1730768547186,0.41733,2397.7,2397.5,4.2995096]
[1730768547380,0.41735,2397.6,2397.5,3.2078]
[1730768547779,4.58855,2397.6,2397.5,3.2078]
[1730768547990,4.49669662,2397.8,2397.3,0.4973]
[1730768548191,4.15893662,2397.7,2397.4,0.41738]
[1730768548377,4.15893662,2397.7,2397.3,0.4973]
[1730768548378,3.24969662,2397.7,2397.3,0.4973]
[1730768548585,1.66432,2397.8,2397.5,0.41736]
[1730768548779,1.247,2397.8,2397.6,0.4969]
[1730768548984,3.24969662,2397.7,2397.3,0.4973]
[1730768549293,40.8,2398.0,2397.5,3.7047]
[1730768549481,0.41733,2397.8,2397.6,0.53]
[1730768549683,40.8,2398.0,2397.9,0.4173]
[1730768550086,1.247,2398.2,2397.8,3.2078]
[1730768550282,3.66692662,2398.3,2398.0,0.41728]
[1730768550483,0.41725,2398.2,2398.1,0.4785]
[1730768550788,40.8,2398.2,2398.1,0.89576]
[1730768550991,41.21725,2398.2,2398.1,0.4785]
[1730768551895,40.8,2398.2,2398.1,0.4785]
[1730768552102,40.8,2398.2,2398.1,0.89576]
[1730768552788,4.4548,2398.5,2398.2,0.41724]
[1730768553089,3.24969662,2398.4,2398.2,0.5047]
[1730768553289,3.24969662,2398.4,2398.3,0.41723]
[1730768553489,3.24969662,2398.4,2398.2,0.92193]
[1730768553696,3.66690662,2398.4,2398.2,0.92193]
[1730768554293,3.24969662,2398.4,2398.2,0.5047]
[1730768554491,0.7839803,2398.9,2398.3,4.1696]
[1730768554492,3.24969662,2398.6,2398.3,4.1696]
[1730768554692,3.24969662,2398.9,2398.7,0.41715]
[1730768554994,3.24969662,2398.9,2398.8,0.9897]
[1730768555196,3.66681662,2398.9,2398.8,0.9897]
[1730768555394,44.46681662,2398.9,2398.8,0.9897]
[1730768556897,44.04969662,2398.9,2398.8,0.9897]
[1730768557089,44.04969662,2398.9,2398.8,1.40684]
[1730768557491,40.8,2398.9,2398.8,1.40684]
[1730768557691,0.27311463,2399.3,2398.8,1.40684]
[1730768557692,4.91372662,2399.5,2398.8,5.1585]
[1730768558000,4.91372662,2399.5,2398.9,3.2078]
[1730768558001,3.24969662,2399.3,2398.9,3.2078]
[1730768558189,3.24969662,2399.3,2399.2,0.41707]
[1730768558894,3.24969662,2399.3,2399.0,0.41711]
[1730768559086,3.24969662,2399.3,2398.9,3.2078]
[1730768559287,0.41709,2399.1,2398.9,0.41712]
[1730768559492,0.4171,2399.1,2398.9,0.41712]
[1730768559796,41.2171,2399.1,2398.9,0.41712]
[1730768560098,40.8,2399.1,2399.0,0.41711]
[1730768560597,40.8,2399.1,2399.0,4.58511]
[1730768560899,0.41707,2399.2,2399.1,0.41708]
[1730768561096,3.66675662,2399.3,2399.1,3.62488]
[1730768561301,40.8,2399.2,2399.1,3.62488]
[1730768561492,41.21707,2399.2,2399.1,3.2078]
[1730768562400,41.21707,2399.2,2399.1,3.62489]
[1730768562598,41.21707,2399.2,2399.1,3.2078]
[1730768564495,40.8,2399.2,2399.1,3.62489]
[1730768564995,41.21707,2399.2,2399.1,3.2078]
[1730768565199,41.21707,2399.2,2398.9,0.41711]
[1730768565200,0.4171,2399.1,2398.9,0.41711]
[1730768565601,40.8,2399.2,2398.9,0.41711]
[1730768565901,0.41711,2399.0,2398.8,4.61463]
[1730768566398,0.4171,2399.1,2398.9,0.41711]
[1730768566900,0.4171,2399.1,2398.8,4.1975]
[1730768567101,41.21708,2399.2,2399.1,0.41709]
[1730768567302,40.8,2399.2,2399.1,0.41709]
[1730768567597,41.21707,2399.2,2399.0,0.4171]
[1730768567798,40.8,2399.2,2399.1,0.41709]
[1730768568305,40.8,2399.2,2399.1,3.62489]
[1730768571603,40.8,2399.2,2399.1,7.79289]
[1730768571803,7.42239662,2399.8,2399.6,0.41699]
[1730768571804,0.41699,2399.7,2399.6,0.41699]
[1730768572302,40.8,2399.7,2399.6,0.41699]
[1730768572607,40.8,2399.7,2399.6,4.58419]
[1730768572808,40.8,2399.7,2399.6,0.41699]
[1730768576011,40.8,2399.7,2399.6,4.58419]
[1730768577014,0.5181,2400.3,2399.6,4.1672]
[1730768577214,1.04198,2400.9,2399.6,4.1672]
[1730768577215,0.41681,2400.7,2400.5,0.41684]
[1730768577415,8.79950662,2400.8,2400.2,3.2078]
[1730768577615,0.41688,2400.4,2400.2,3.62468]
[1730768577927,0.41688,2400.3,2400.2,3.62468]
[1730768578229,3.24969662,2400.5,2400.2,3.62468]
[1730768578414,41.3201,2400.6,2400.2,3.2078]
[1730768578614,40.8,2400.6,2400.5,0.41685]
[1730768579015,40.8,2400.6,2400.5,7.79025]
[1730768579219,0.4969,2401.1,2400.5,7.3734]
[1730768579422,0.4832,2401.3,2401.0,0.41676]
[1730768579727,41.21673,2401.2,2401.0,0.41676]
[1730768579915,41.21673,2401.2,2400.9,1.41616]
[1730768579916,0.41674,2401.1,2400.9,1.41616]
[1730768580116,41.21674,2401.2,2401.0,0.41676]
[1730768580823,0.41676,2401.0,2400.9,0.9994]
[1730768581119,44.46642662,2401.2,2401.0,0.41675]
[1730768581714,40.8,2401.2,2401.0,0.41675]
[1730768581922,41.21673,2401.2,2401.0,0.41675]
[1730768583018,40.8,2401.2,2401.1,0.41674]
[1730768583320,3.74659662,2401.5,2401.1,3.2078]
[1730768583321,0.4969,2401.5,2401.1,3.2078]
[1730768583516,3.77569662,2401.9,2401.1,3.2078]
[1730768583717,3.77569662,2401.9,2400.9,4.24909662]
[1730768583718,0.41659,2402.0,2401.8,0.41662]
[1730768583919,0.41659,2402.0,2401.7,0.41663]
[1730768583920,40.8,2401.9,2401.7,0.41663]
[1730768584428,40.8,2401.9,2401.8,0.41662]
[1730768584724,0.62551,2402.5,2402.3,0.41653]
[1730768584923,1.04098,2403.2,2401.5,0.9946]
[1730768584924,3.2078,2402.9,2402.0,6.45749662]
[1730768585124,3.2078,2402.9,2402.8,0.41645]
[1730768585323,3.2078,2403.3,2402.7,3.2078]
[1730768585518,1.8223,2403.5,2402.8,3.24969662]
[1730768585720,41.21635,2403.4,2403.1,3.2078]
[1730768585920,41.21635,2403.4,2403.0,0.4164]
[1730768586121,3.24969662,2403.3,2402.5,3.2078]
[1730768586322,40.8,2403.4,2402.5,6.45749662]
[1730768586523,0.4164,2403.1,2402.8,3.2078]
[1730768586831,0.41637,2403.3,2402.9,0.41642]
[1730768587128,40.8,2403.4,2402.8,3.2078]
[1730768587314,7.20728472,2403.3,2402.8,3.62425]
[1730768587522,0.41638,2403.2,2402.8,3.62425]
[1730768587717,7.20728472,2403.3,2402.8,3.62425]
[1730768587718,7.20728472,2403.3,2402.8,3.2078]
[1730768587917,0.41643,2402.9,2402.8,3.2078]
[1730768589123,7.20728472,2403.3,2402.8,3.2078]
[1730768589324,3.2078,2403.3,2402.8,3.2078]
[1730768589517,3.2078,2403.3,2403.1,0.41639]
[1730768590325,40.8,2403.4,2403.1,3.2078]
[1730768590522,40.8,2403.4,2403.3,0.41636]
[1730768590715,0.209,2404.0,2403.8,0.41627]
[1730768590920,0.41623,2404.1,2403.8,0.41627]
[1730768591120,40.8,2403.9,2403.8,0.41627]
[1730768591325,40.8,2403.9,2403.7,0.41628]
[1730768591528,40.8,2403.9,2403.8,0.41627]
[1730768591736,40.8,2403.9,2403.8,3.62407]
[1730768591924,40.8,2403.9,2403.8,7.78407]
[1730768592324,0.209,2404.5,2404.4,0.41617]
[1730768592519,0.209,2404.5,2403.8,8.40846]
[1730768592520,3.6239,2404.9,2404.1,3.2078]
[1730768592720,0.41615,2404.6,2404.2,0.4162]
[1730768592928,3.2078,2404.9,2404.4,0.41617]
[1730768592929,0.41613,2404.7,2404.4,0.41617]
[1730768593232,0.41615,2404.6,2404.3,3.2078]
[1730768594528,40.8,2404.8,2404.3,3.2078]
[1730768594727,0.41615,2404.5,2404.3,3.2078]
[1730768595326,0.41617,2404.4,2404.3,3.2078]
[1730768595727,7.20728472,2404.9,2404.3,3.2078]
[1730768595929,0.41617,2404.4,2404.3,3.2078]
[1730768596131,0.41617,2404.4,2403.7,3.2078]
[1730768596332,3.2078,2404.5,2403.7,3.2078]
[1730768596333,41.21619,2404.3,2403.7,3.2078]
[1730768596526,40.8,2404.3,2403.9,0.41625]
[1730768596729,0.41623,2404.1,2403.7,3.62408]
[1730768596936,40.8,2404.3,2403.7,3.62409]
[1730768597134,0.41623,2404.1,2403.7,3.62409]
[1730768597333,0.41622,2404.2,2403.7,3.2078]
[1730768597537,40.8,2404.3,2403.9,0.41625]
[1730768597833,40.8,2404.3,2403.7,3.2078]
[1730768598434,0.41624,2404.1,2403.7,3.62408]
[1730768598832,0.41624,2404.1,2403.8,0.41627]
[1730768598833,0.41623,2404.1,2403.8,0.41627]
[1730768599051,0.41624,2404.0,2403.7,3.62408]
[1730768599228,40.8,2404.3,2403.7,3.2078]
[1730768599543,0.41623,2404.1,2403.8,0.41627]
[1730768599735,0.41624,2404.0,2403.7,3.62408]
[1730768600233,40.8,2404.3,2403.7,3.2078]
[1730768600440,40.8,2404.3,2403.8,0.41627]
[1730768600441,0.41623,2404.1,2403.8,0.41627]
[1730768600630,0.41624,2404.0,2403.8,0.41627]
[1730768601727,0.41624,2404.0,2403.7,3.62408]
[1730768602234,40.8,2404.3,2403.7,3.2078]
[1730768602429,40.8,2404.3,2403.8,0.41627]
[1730768602628,0.41624,2404.0,2403.7,3.62408]
[1730768602834,0.41626,2403.9,2403.7,3.62408]
[1730768603328,0.41625,2404.0,2403.8,0.41627]
[1730768603730,0.41621,2404.2,2403.7,3.2078]
[1730768603933,41.2162,2404.3,2404.0,0.41623]
[1730768604143,40.8,2404.3,2404.0,3.2078]
[1730768604336,40.8,2404.3,2404.1,0.91911]
[1730768604535,40.8,2404.3,2404.1,0.5029]
[1730768605144,40.8,2404.3,2404.2,0.4162]
[1730768605462,3.2078,2404.8,2404.2,4.1592]
[1730768605737,0.41606,2405.1,2404.8,0.41608]
[1730768605929,3.4168,2405.3,2404.6,3.2078]
[1730768605930,3.2078,2405.3,2404.6,3.2078]
[1730768606131,0.41612,2404.7,2404.6,3.2078]
[1730768606337,41.21612,2404.7,2404.6,3.2078]
[1730768607145,45.37452,2404.7,2404.6,3.2078]
[1730768607333,49.20652,2404.7,2404.1,0.5029]
[1730768607530,45.04812,2404.7,2404.1,0.5029]
[1730768607743,0.4162,2404.3,2404.1,0.5029]
[1730768608046,45.04812,2404.7,2404.1,0.5029]
[1730768608047,0.4162,2404.2,2404.1,0.5029]
[1730768608343,0.4162,2404.3,2404.1,0.5029]
[1730768608734,45.04812,2404.7,2404.1,0.5029]
[1730768608735,0.4162,2404.2,2404.1,0.5029]
[1730768608931,0.4162,2404.2,2403.9,3.2078]
[1730768609135,0.4162,2404.2,2403.5,4.48858472]
[1730768609136,3.2078,2404.4,2403.6,3.7347]
[1730768609337,0.5049,2404.3,2403.6,4.151]
[1730768609539,0.5049,2404.3,2403.6,3.7347]
[1730768609744,0.41627,2403.9,2403.6,4.151]
[1730768609945,0.5049,2404.3,2403.6,4.151]
[1730768610248,1.5454,2404.3,2403.6,3.7347]
[1730768610738,0.41628,2403.8,2403.6,4.151]
[1730768611138,0.41629,2403.7,2403.6,3.7347]
[1730768611547,0.4162,2404.2,2403.6,4.15099]
[1730768611740,0.41629,2403.7,2403.6,4.151]
[1730768611940,0.41629,2403.7,2403.6,3.7347]
[1730768612645,0.41628,2403.8,2403.6,4.151]
[1730768613751,1.04052,2404.2,2403.6,3.7347]
[1730768614046,1.04052,2404.2,2403.6,4.151]
[1730768614247,0.41629,2403.7,2403.6,4.151]
[1730768614450,0.41629,2403.8,2403.6,4.151]
[1730768615342,0.5147,2404.1,2403.7,0.41628]
[1730768615544,0.41627,2403.8,2403.7,0.41628]
[1730768615745,0.41627,2403.8,2403.6,3.7347]
[1730768615746,0.41627,2403.8,2403.6,4.151]
[1730768616548,0.5147,2404.1,2403.6,4.151]
[1730768616549,0.41629,2403.7,2403.6,4.151]
[1730768616943,0.41629,2403.7,2403.6,8.311]
[1730768617146,0.41629,2403.7,2403.6,4.151]
[1730768617541,0.41626,2403.9,2403.8,0.41627]
[1730768617736,0.41629,2403.8,2403.6,3.7347]
[1730768618137,0.41629,2403.8,2403.6,4.15099]
[1730768618338,0.41629,2403.7,2403.6,3.7347]
[1730768619439,0.41629,2403.7,2403.6,4.15101]
[1730768619745,41.21629,2403.7,2403.6,3.2078]
[1730768620143,41.21629,2403.7,2403.6,3.62411]
[1730768620541,0.41631,2403.6,2403.5,0.41632]
[1730768620843,40.8,2403.7,2403.6,0.41631]
[1730768621045,41.21629,2403.7,2403.6,0.41631]
[1730768621447,40.8,2403.7,2403.6,0.41631]
[1730768621746,0.41623,2404.1,2404.0,0.41623]
[1730768621953,0.41624,2404.0,2403.9,0.41625]
[1730768622256,40.8,2404.0,2403.9,0.41625]
[1730768622453,41.21624,2404.0,2403.9,0.41625]
[1730768622859,40.8,2404.0,2403.9,0.41625]
[1730768623355,41.21624,2404.0,2403.9,0.41625]
[1730768624150,41.21624,2404.0,2403.9,0.56473106]
[1730768624353,0.41627,2403.8,2403.7,1.58347152]
[1730768624548,0.41627,2403.8,2403.7,1.63113715]
[1730768624752,40.8,2404.0,2403.7,1.06637152]
[1730768624952,0.41629,2403.7,2403.6,1.48267152]
[1730768625155,0.41629,2403.7,2403.6,2.04745584]
[1730768625453,0.41629,2403.7,2403.6,4.04363148]
[1730768625656,0.41629,2403.7,2403.6,4.04364148]
[1730768625960,0.41629,2403.7,2403.6,5.506621]
[1730768626153,0.41629,2403.7,2403.6,3.90706372]
[1730768626652,0.41629,2403.8,2403.6,3.90706372]
[1730768626856,0.41629,2403.8,2403.7,1.64631533]
[1730768627055,0.41629,2403.8,2403.7,0.56478432]
[1730768627361,0.41629,2403.8,2403.7,1.64631533]
[1730768627653,0.41629,2403.8,2403.7,3.61757169]
[1730768627853,0.41629,2403.8,2403.7,4.52355309]
[1730768628354,0.41629,2403.8,2403.7,5.05673886]
[1730768628853,0.41629,2403.8,2403.7,3.83343955]
[1730768629053,4.57629,2403.8,2403.7,3.83343955]
[1730768629355,4.57629,2403.8,2403.7,5.4625803]
[1730768630262,12.32613501,2403.8,2403.7,3.46636274]
[1730768630558,12.32613501,2403.8,2403.7,4.02533394]
[1730768630754,12.32613501,2403.8,2403.7,2.02800522]
[1730768631061,12.32613501,2403.8,2403.7,2.59379441]
[1730768633160,12.32613501,2403.8,2403.7,2.02800522]
[1730768634156,8.16613501,2403.8,2403.7,2.02800522]
[1730768635056,8.43835317,2403.8,2403.7,2.02800522]
[1730768636463,3.89630816,2403.8,2403.7,2.02800522]
[1730768638161,3.89630816,2403.8,2403.7,0.56867315]
[1730768639273,9.35130816,2403.8,2403.7,0.56867315]
[1730768639559,12.59935317,2403.8,2403.7,0.56867315]
[1730768640662,0.41635,2403.4,2403.2,0.41637]
[1730768640867,0.41635,2403.4,2403.3,0.56632283]
[1730768641160,5.19130816,2403.8,2403.3,0.56632283]
[1730768641361,0.41633,2403.5,2403.1,2.55674501]
[1730768641666,0.41632,2403.6,2403.4,0.41634]
[1730768641866,4.5028,2403.8,2403.4,0.41634]
[1730768642070,0.41634,2403.4,2403.2,0.41638]
[1730768642369,0.41634,2403.4,2403.1,2.55674501]
[1730768642370,0.41638,2403.2,2403.1,1.4684]
[1730768642565,0.41638,2403.2,2403.1,2.03480009]
[1730768642764,0.41638,2403.2,2403.1,1.4684]
[1730768643165,0.41638,2403.2,2402.6,1.08834501]
[1730768643166,0.41645,2402.8,2402.6,1.08834501]
[1730768643368,3.24804501,2403.0,2402.7,0.9656]
[1730768643575,0.41645,2402.8,2402.7,0.9656]
[1730768643866,41.21645,2402.8,2402.7,0.9656]
[1730768644973,44.46449501,2402.8,2402.7,0.9656]
[1730768645176,44.46449501,2402.8,2402.3,3.2078]
[1730768645177,44.04804501,2402.8,2402.3,3.62433]
[1730768645369,0.4165,2402.5,2402.4,0.4717]
[1730768645672,0.41649,2402.6,2402.4,0.8882]
[1730768646066,0.41649,2402.6,2402.4,0.4717]
[1730768646368,40.8,2402.8,2402.4,0.4717]
[1730768646569,0.4165,2402.5,2402.4,0.4717]
[1730768647280,0.41648,2402.7,2402.5,0.41649]
[1730768647975,40.8,2402.8,2402.4,0.4717]
[1730768648169,0.4165,2402.5,2402.4,0.4717]
[1730768648370,45.08918501,2402.8,2402.4,0.4717]
[1730768648371,44.04804501,2402.8,2402.4,0.4717]
[1730768648571,0.41648,2402.6,2402.4,0.8882]
[1730768648963,40.8,2402.8,2402.4,0.4717]
[1730768649173,40.8,2402.8,2402.7,0.41646]
[1730768649369,40.8,2402.8,2402.4,0.4717]
[1730768649370,41.21646,2402.8,2402.6,0.41648]
[1730768649770,3.2078,2402.9,2402.7,0.4882]
[1730768649969,3.62423,2402.9,2402.7,0.90465]
[1730768650170,3.62423,2402.9,2402.8,0.4789]
[1730768650370,44.42423,2402.9,2402.8,0.4789]
[1730768651778,3.2078,2402.9,2402.8,0.4789]
[1730768651979,0.41643,2403.0,2402.8,0.4789]
[1730768652175,0.41641,2403.0,2402.9,0.4702]
[1730768652376,41.21641,2403.0,2402.9,0.4702]
[1730768653579,40.8,2403.0,2402.9,0.4702]
[1730768653881,41.21641,2403.0,2402.9,0.4702]
[1730768655868,41.21641,2403.0,2401.3,4.91091457]
[1730768655869,0.41652,2402.4,2402.2,0.41654]
[1730768656074,6.45584501,2402.7,2402.3,0.5123]
[1730768656270,0.41651,2402.5,2402.3,0.92883]
[1730768656480,6.45584501,2402.7,2402.4,0.41651]
[1730768656481,0.41649,2402.6,2402.4,0.41651]
[1730768656682,0.4165,2402.5,2402.4,0.41651]
[1730768656882,0.4165,2402.5,2402.3,0.92882]
[1730768657080,0.4165,2402.5,2402.4,0.5148]
[1730768658383,6.45584501,2402.7,2402.4,0.5148]
[1730768658577,0.41649,2402.6,2402.4,0.5148]
[1730768658771,0.41649,2402.6,2402.4,0.93131]
[1730768659388,3.2078,2402.7,2402.4,0.5148]
[1730768659685,0.4165,2402.5,2402.4,0.5148]
[1730768661383,4.24894,2402.8,2402.4,0.93131]
[1730768661384,0.41649,2402.6,2402.4,0.93131]
[1730768662276,0.4165,2402.5,2402.4,0.5148]
[1730768662473,3.2078,2402.8,2402.4,0.93131]
[1730768662474,0.41649,2402.6,2402.4,0.93131]
[1730768663181,0.4165,2402.5,2402.4,0.5148]
[1730768663475,0.41649,2402.6,2402.4,0.93131]
[1730768663875,3.2078,2402.8,2402.4,0.93131]
[1730768664276,0.4165,2402.5,2402.4,0.5148]
[1730768664796,0.4165,2402.5,2402.4,0.93132]
[1730768664982,3.2078,2402.8,2402.4,4.6772]
[1730768665175,3.2078,2403.1,2402.5,1.04126]
[1730768665377,0.41636,2403.3,2403.1,0.41638]
[1730768665678,41.21636,2403.3,2403.2,0.922]
[1730768666084,3.24804501,2403.4,2403.2,0.922]
[1730768666275,3.66439501,2403.4,2403.2,1.33837]
[1730768666476,3.66439501,2403.4,2403.2,1.33836]
[1730768666779,44.46438501,2403.4,2403.3,0.4511]
[1730768666979,44.04804501,2403.4,2403.3,0.86746]
[1730768667178,3.2078,2403.5,2403.4,0.41634]
[1730768667378,3.2078,2403.5,2403.3,4.6119]
[1730768667574,3.2078,2403.5,2403.4,0.41634]
[1730768667882,3.2078,2403.5,2403.4,4.57714]
[1730768668384,40.8,2403.6,2403.4,4.1608]
[1730768668573,41.21632,2403.6,2403.4,0.41634]
[1730768668777,40.8,2403.6,2403.5,0.41633]
[1730768668981,40.8,2403.6,2403.4,0.41634]
[1730768669183,0.41633,2403.5,2403.4,0.41634]
[1730768670279,40.8,2403.6,2403.4,0.41634]
[1730768670488,41.21632,2403.6,2403.4,0.41634]
[1730768670689,40.8,2403.6,2403.5,0.41633]
[1730768670886,41.21631,2403.6,2403.5,0.41633]
[1730768672175,41.21631,2403.6,2403.4,0.41633]
[1730768672376,40.8,2403.6,2403.5,0.41633]
[1730768672585,0.41622,2404.1,2403.5,7.78493]
[1730768672882,0.41622,2404.1,2403.5,3.62413]
[1730768673088,40.8,2404.0,2403.8,3.2078]
[1730768673290,40.8,2404.0,2403.9,1.74396]
[1730768673477,41.21624,2404.0,2403.9,0.886]
[1730768673679,41.21624,2404.0,2403.9,1.30226]
[1730768673881,40.8,2404.0,2403.9,1.30226]
[1730768674594,3.69714501,2404.6,2403.9,8.2538]
[1730768674783,0.41616,2404.5,2404.4,0.41617]
[1730768674987,0.41618,2404.4,2404.0,0.4417]
[1730768675295,0.4162,2404.3,2404.1,0.41621]
[1730768675590,0.4162,2404.3,2404.0,0.4417]
[1730768675591,0.4162,2404.3,2404.2,0.4162]
[1730768675793,0.4162,2404.3,2404.1,0.41621]
[1730768676591,0.4162,2404.3,2404.0,0.4417]
[1730768676790,0.4162,2404.3,2404.2,0.4162]
[1730768679186,0.4162,2404.3,2404.0,3.6495]
[1730768679388,0.4162,2404.3,2404.1,0.41621]
[1730768680483,40.8,2404.2,2404.1,0.41621]
[1730768681495,40.8,2404.2,2404.1,4.57541]
[1730768683593,3.24804501,2404.8,2404.3,0.41618]
[1730768683795,0.41617,2404.4,2404.3,0.41618]
[1730768684091,41.21617,2404.4,2404.3,0.41618]
[1730768684688,40.8,2404.4,2404.1,3.2078]
[1730768684885,41.21619,2404.4,2404.2,0.4162]
[1730768685092,0.41619,2404.3,2404.2,0.4162]
[1730768688397,0.41621,2404.2,2404.1,0.41621]
[1730768688806,40.8,2404.4,2403.9,0.886]
[1730768689096,0.4162,2404.3,2404.1,0.41621]
[1730768689704,0.4162,2404.3,2403.9,0.886]
[1730768689905,0.4162,2404.3,2404.2,0.4162]
[1730768690100,0.41621,2404.2,2404.1,0.41622]
[1730768691195,40.8,2404.4,2404.1,0.41622]
[1730768691196,0.4162,2404.3,2404.1,0.41622]
[1730768691396,0.4162,2404.3,2404.2,0.4162]
[1730768692804,0.41621,2404.2,2404.1,0.41621]
[1730768694106,0.4162,2404.3,2404.2,0.4162]
[1730768697603,4.24812,2404.7,2404.6,0.41614]
[1730768697604,3.2078,2404.7,2404.6,0.41614]
[1730768698201,44.0078,2404.7,2404.6,4.57454]
[1730768698500,3.2078,2404.7,2404.6,4.57454]
[1730768700409,0.41615,2404.6,2404.5,0.41615]
[1730768701004,3.2078,2404.7,2404.4,0.8879]
[1730768701005,0.41615,2404.5,2404.4,0.8879]
[1730768701313,0.41615,2404.5,2404.3,3.2078]
[1730768701314,0.41618,2404.4,2404.3,0.41618]
[1730768701507,0.41617,2404.5,2404.4,0.41616]
[1730768702608,0.41618,2404.4,2404.3,0.41618]
[1730768702807,0.9283,2404.6,2404.0,4.1369]
[1730768703008,0.41621,2404.2,2404.1,0.41622]
[1730768704210,0.9283,2404.6,2404.0,4.1369]
[1730768704607,0.41621,2404.2,2404.1,0.41621]
[1730768707510,0.4162,2404.3,2404.2,0.4162]
[1730768708002,3.2078,2404.7,2404.2,4.1592]
[1730768708201,3.2078,2404.7,2404.2,3.2078]
[1730768708503,0.41616,2404.5,2404.4,0.41616]
[1730768708702,0.41618,2404.4,2404.0,3.05146758]
[1730768709010,3.2078,2404.7,2404.1,0.56858675]
[1730768709309,0.41615,2404.6,2404.4,0.41615]
[1730768710106,0.41615,2404.6,2404.5,0.41615]
[1730768710307,0.41615,2404.6,2404.5,0.56947339]
[1730768710308,0.41614,2404.6,2404.5,0.56947339]
[1730768710708,3.62392,2404.7,2404.6,0.41614]
[1730768710915,3.62392,2404.7,2404.6,0.85904]
[1730768711213,3.62392,2404.7,2404.6,1.01572727]
[1730768711608,3.2078,2404.7,2404.6,1.90316727]
[1730768711810,3.2078,2404.7,2404.6,4.37375212]
[1730768712008,3.2078,2404.7,2404.6,3.29197454]
[1730768712208,3.2078,2404.7,2404.6,4.37375212]
[1730768713009,41.2161,2404.9,2404.6,3.95761212]
[1730768713309,41.2161,2404.9,2404.8,0.4161]
[1730768713509,41.2161,2404.9,2404.8,1.90603454]
[1730768713705,41.2161,2404.9,2404.8,1.48993454]
[1730768714106,41.2161,2404.9,2404.8,0.57282727]
[1730768714310,41.2161,2404.9,2404.8,1.49039671]
[1730768715311,41.2161,2404.9,2404.8,0.57282727]
[1730768716417,0.41617,2404.4,2404.3,2.70444396]
[1730768716721,0.41617,2404.4,2404.3,0.91797304]
[1730768717224,0.41617,2404.4,2404.2,1.97327758]
[1730768717520,0.41617,2404.4,2404.3,0.91141012]
[1730768718821,0.41619,2404.3,2404.2,1.08177758]
[1730768719011,7.8465,2404.3,2403.9,1.08177758]
[1730768719211,1.04056,2404.1,2403.6,1.08177758]
[1730768719413,6.93534501,2404.3,2403.4,1.08177758]
[1730768719414,6.45584501,2403.8,2403.4,1.08177758]
[1730768719618,3.2078,2403.5,2403.3,1.62266638]
[1730768719812,0.41636,2403.3,2403.2,1.52057758]
[1730768720016,0.41636,2403.3,2403.2,0.91192651]
[1730768720215,0.4164,2403.1,2403.0,1.52277758]
[1730768720415,40.8,2403.1,2403.0,2.85051744]
[1730768720610,41.2164,2403.1,2403.0,1.35232986]
[1730768720819,41.2164,2403.1,2403.0,0.441]
[1730768721319,40.8,2403.1,2403.0,0.85741]
[1730768721721,40.8,2403.1,2403.0,0.441]
[1730768722825,41.2164,2403.1,2403.0,0.441]
[1730768728024,4.1616,2403.1,2402.6,3.2078]
[1730768728322,0.41648,2402.7,2402.4,0.41651]
[1730768728622,40.8,2402.6,2402.3,4.1507]
[1730768728819,40.8,2402.6,2402.5,0.4165]
[1730768729222,40.8,2402.6,2402.3,4.1507]
[1730768729728,0.41652,2402.4,2402.3,0.9429]
[1730768730922,7.3702,2402.4,2402.0,0.4675]
[1730768731126,0.41656,2402.2,2402.0,0.88409]
[1730768731626,0.41657,2402.1,2402.0,0.4675]
[1730768732021,0.41662,2401.8,2401.7,0.4412]
[1730768732419,4.164,2401.8,2401.3,3.2078]
[1730768732620,6.45584501,2401.4,2400.5,1.08177758]
[1730768732823,3.2078,2401.1,2400.4,3.2078]
[1730768733022,3.2078,2401.1,2400.3,0.4412]
[1730768733023,3.24804501,2400.8,2400.3,0.4412]
[1730768733224,6.45584501,2400.8,2400.3,0.4412]
[1730768733423,2.2924,2401.5,2400.3,3.649]
[1730768733424,1.233,2400.9,2400.3,3.649]
[1730768733927,0.4168,2400.8,2400.3,3.649]
[1730768734128,40.8,2400.7,2400.4,0.41685]
[1730768734331,40.8,2400.7,2400.3,3.649]
[1730768734332,0.41683,2400.6,2400.3,4.06587]
[1730768734830,40.8,2400.7,2400.3,4.06587]
[1730768734831,41.21682,2400.7,2400.4,0.41685]
[1730768735532,0.41683,2400.6,2400.4,0.41685]
[1730768735830,40.8,2400.7,2400.5,0.41684]
[1730768736123,40.8,2400.7,2400.3,3.649]
[1730768736423,0.41683,2400.6,2400.4,0.41685]
[1730768736923,40.8,2400.7,2400.3,0.85807]
[1730768737225,3.2078,2400.8,2400.0,3.2078]
[1730768737226,3.24804501,2400.5,2400.0,3.2078]